{"text_format":"3","workbook":"xlsx","n_sheets":17,"sheets":["Balanza Comprobacion","Est. Situacion F.","Est. Resultado F.","ECAMP","EST. Flujo Efc","Efectivo","Cuenta por Cobrar","Inventario","Mobiliario Eq. Ofc.","CXP Corto plazo","Retenciones y Acum.","Benef. Empl x p Corto Plazo","CXP Largo Plazo","Benef. Empl x pagar Larg. Plaz","Patrimonio","Ingresos","Gastos"],"not_rendered":{"external_links":1,"defined_names":1,"comments":1},"read":"whole","date_system":"1900"}

{"sheet":"Balanza Comprobacion","index":0,"n_rows":195,"n_cols":10,"rows_kept":195,"merged":[[1,3,1,5],[2,3,2,5],[3,3,3,5],[4,3,4,5]]}
[{"$nulls":3},"Diferencia para control debe ser cero"]
[{"$nulls":3},"Servicio Nacional de Salud"]
[{"$nulls":3},"Balanza de comprobación"]
[{"$nulls":3},"Al 31 de enero de 2025"]
[{"$nulls":3},"(Valores en RD$)"]
[{"$nulls":3}," "]
[]
[null,"**",null,"Cuentas ","DB","CR"]
[null,"0001","0001","Efectivo y Banco"]
[null,"0004",null,"Cuentas por cobrar funcionarios y empleados"]
[null,"0005",null,"Inventario"]
[null,"0006",null,"Pagos anticipados"]
[null,"0012",null,"Mobiliarios y equipos de oficina"]
[null,"0012",null,"Depreciación acumulada"]
[]
[null,"**",null,"PASIVOS"]
[null,"0016",null,"Cuentas por pagar a corto plazo"]
[null,"0019",null,"Retenciones y acumulaciones por pagar"]
[{"$nulls":3},"Beneficios a empleados a corto plazo "]
[{"$nulls":3},"Cuentas por pagar a largo plazo "]
[{"$nulls":3},"Beneficios a empleados a largo plazo"]
[{"$nulls":3},"Capital"]
[null,"0033",null,"Resultado acumulado"]
[null,"0032",null,"Resultado del período"]
[{"$nulls":3},"Ajustes"]
[null,"0037",null,"Ingresos"]
[null,"0039","0010","Sueldos fijos"]
[null,"0039","0011","Sueldos al personal contratado y/o igualado"]
[null,"0039","0012","Sueldos al personal fijo en trámite de pensiones"]
[null,"0039",null,"Sueldos al personal por servicios especiales"]
[null,"0039","0013","Sueldo anual no. 13"]
[null,"0039","0014","Proporción de vacaciones no disfrutadas"]
[null,"0039",null,"Incentivos y escalafón"]
[{"$nulls":3},"SOBRESUELDOS"]
[{"$nulls":3},"Prestación laboral por desvinculación"]
[{"$nulls":3},"Compensaciones especiales"]
[{"$nulls":3},"Primas por antigüedad"]
[null,"0039","0015","Compensación por horas extraordinarias"]
[{"$nulls":3},"Compensación por servicio de seguridad"]
[{"$nulls":3},"Compensaciones por resultado"]
[{"$nulls":3},"Compensación por distancia"]
[null,"0039",null,"Pago de horas extraordinarias, Horas extraordinarias fin de año (Reglamento 523-09)"]
[null,"0039","0017","Bono por desempeño"]
[{"$nulls":3},"GRATIFICACIONES Y BONIFICACIONES"]
[null,"0039","0018","Gratificaciones por aniversario de institución"]
[{"$nulls":3},"CONTRIBUCIONES A LA SEGURIDAD SOCIAL Y RIESGO LABORAL"]
[null,"0039","0019","Contribuciones al seguro de salud"]
[null,"0039",null,"Contribuciones al seguro de pensiones "]
[null,"0039",null,"Contribuciones al seguro de riesgo laboral"]
[{"$nulls":3},"SERVICIOS NO PERSONALES"]
[{"$nulls":3},"SERVICIOS BÁSICOS"]
[null,"0044",null,"Servicios telefónico de larga distancia"]
[null,"0044",null,"Teléfono local"]
[null,"0044",null,"Telefax y correo"]
[null,"0044",null,"Servicio de internet y televisión por cable"]
[null,"0044",null,"Energía eléctrica"]
[{"$nulls":3},"Agua"]
[{"$nulls":3},"Organización de eventos y festividades"]
[{"$nulls":3},"PUBLICIDAD, IMPRESIÓN Y ENCUADERNACIÓN"]
[null,"0044",null,"Publicidad y propaganda"]
[null,"0044",null,"Impresión y encuadernación"]
[{"$nulls":3},"VIÁTICOS"]
[null,"0044",null,"Viáticos dentro del país"]
[null,"0044",null,"Viáticos fuera del país"]
[{"$nulls":3},"TRANSPORTE Y ALMACENAJES"]
[null,"0044",null,"Pasajes"]
[null,"0044",null,"Peajes"]
[{"$nulls":3},"Almacenaje"]
[{"$nulls":3},"Fletes"]
[{"$nulls":3},"ALQUILERES Y RENTA"]
[null,"0044",null,"Alquiler de equipo de oficina y muebles"]
[null,"0044","2.2.5.4.01","Alquileres de equipos de transporte, tracción y elevación"]
[null,"0044",null,"Alquilleres y rentas de edificios y locales"]
[{"$nulls":3},"Alquiler de equipo educacional"]
[{"$nulls":3},"Alquiler de equipo para computación"]
[{"$nulls":3},"Otros alquileres"]
[{"$nulls":3},"SEGUROS"]
[null,"0044",null,"Seguro de bienes muebles"]
[null,"0044","2.2.6.3.01","Seguro de personas"]
[{"$nulls":3},"CONSERV., REPS. MENORES E INSTALACIONES TEMP."]
[{"$nulls":3},"Obras menores en edificaciones"]
[{"$nulls":3},"Obras para edificación no residencial"]
[null,"0044",null,"Servicios especiales de mantenimiento y reparación"]
[{"$nulls":3},"Mantenimiento y reparación de obras civiles en instalaciones varias"]
[null,"0044","2.2.7.1.07","Servicios de pintura y derivados con fin de higiene y embellecimiento"]
[null,"0044",null,"Reparaciones de obras menores"]
[null,"0044",null,"Mant. y rep. De equipo de oficina y muebles"]
[{"$nulls":3},"Instalaciones eléctricas"]
[null,"0044","2.2.7.2.05","Mantenimiento y reparación de equipos sanitarios y de laboratorio"]
[null,"0044",null,"Mant. y rep. De equipo de transporte, tracción y elevación"]
[{"$nulls":3},"Mantenimiento y reparación de muebles y equipos de oficina"]
[{"$nulls":3},"Mantenimiento y reparación de equipo para computación"]
[{"$nulls":3},"Equipo de telecomunicaciones y señalamiento"]
[{"$nulls":3},"Pinturas, Lacas, Barnices, Diluyentes y Absorbentes para Pinturas"]
[{"$nulls":3},"OTROS SERVICIOS NO PERSONALES "]
[null,"0044",null,"Comisiones y gastos bancarios"]
[null,"0044","2.2.8.3.01","Servicios sanitarios médicos y veterinarios "]
[null,"0044",null,"Fumigación"]
[null,"0044","Activos prepagados","Insecticidas, Fumigantes y Otros"]
[null,"0044","Activos prepagados","Limpieza e higiene"]
[null,"0044",null,"Eventos generales"]
[{"$nulls":3},"Festividades"]
[null,"0044",null,"Servicios jurídicos"]
[{"$nulls":3},"Gastos judiciales"]
[null,"0044","2.2.8.7.04","Servicios de capacitación"]
[null,"0044",null,"Otros servicios técnicos profesionales"]
[null,"0044",null,"Impuestos "]
[null,"0044",null,"Recolección de residuos sólidos"]
[null,"0044",null,"Servicios de informática y sistemas computarizados"]
[{"$nulls":3},"MATERIALES Y SUMINISTROS"]
[{"$nulls":3},"ALIMENTOS Y PRODUCTOS AGROFORESTALES"]
[null,"0039","2.3.1.1.01","Alimentos y bebidas para personas"]
[null,"0041","2.3.1.3.03","Productos forestales"]
[{"$nulls":3},"TEXTILES Y VESTUARIOS"]
[null,"0041","2.3.2.1.01","Hilados y telas"]
[null,"0041","2.3.2.2.01","Acabados textiles"]
[null,"0039","2.3.2.3.01","Prendas de vestir"]
[{"$nulls":3},"PRODUCTOS DE PAPEL, CARTÓN E IMPRESO"]
[null,"0041","2.3.3.1.01","Papel de escritorio"]
[null,"0041","2.3.3.2.01","Productos de papel y cartón"]
[null,"0041","2.3.3.3.01","Productos de artes gráficas"]
[null,"0039","2.3.4.1.01","Productos medicinales para uso humano"]
[{"$nulls":3},"PRODUCTOS DE CUERO, CAUCHO Y PLÁSTICOS"]
[null,"0041","2.3.5.2.01","Artículos de cuero"]
[null,"0041",{"$error":"#N/A"},"Libros, revistas y periódicos"]
[null,"0041","2.3.5.3.01","Llantas y neumáticos"]
[null,"0041","2.3.5.4.01","Artículos de caucho"]
[null,"0041","2.3.5.5.01","Artículos de plástico"]
[{"$nulls":3},"PRODUCTOS DE MINERALES, METÁLICOS Y NO METÁLICOS"]
[null,"0041",null,"Metales y piedras preciosas"]
[null,"0041","2.3.6.1.01","Productos de cemento"]
[{"$nulls":3},"Productos de porcelana"]
[null,"0041","2.3.6.1.04","Productos de yeso"]
[null,"0041","2.3.6.2.01","Productos de vidrio"]
[null,"0041","2.3.6.3.01","Productos ferrosos"]
[null,"0041","2.3.6.3.02","Productos no ferrosos"]
[{"$nulls":3},"Productos fotoquímicos"]
[null,"0041",{"$error":"#N/A"},"Herramientas menores"]
[null,"0041",{"$error":"#N/A"},"Productos de hojalata"]
[null,"0041","2.3.6.3.06","Accesorios de metal"]
[null,"0041",{"$error":"#N/A"},"Piedra, arcilla y arena"]
[{"$nulls":3},"COMBUSTIBLES, LUBRICANTES, PRODUCTOS QUÍMICOS Y CONEXOS"]
[{"$nulls":3},"Gas GLP"]
[null,"0041","2.3.7.1.01","Gasolina"]
[null,"0041","2.3.7.1.02","Gasoil"]
[null,"0041",{"$error":"#N/A"},"Aceites y grasas"]
[null,"0041",null,"Lubricantes"]
[null,"0041","2.3.7.2.03","Productos químicos de laboratorio y de uso personal"]
[null,"0041","2.3.7.2.05","Insecticidas, fumigantes y otros"]
[null,"0041","2.3.7.2.06","Pinturas, lacas, barnices, diluyentes y absorbentes para pinturas"]
[{"$nulls":3},"PRODUCTOS Y ÚTILES VARIOS"]
[null,"0041","2.3.9.1.01","Material para limpieza"]
[null,"0041","2.3.9.2.01","Útiles de escritorio, oficina e informática "]
[null,"0041","2.3.9.3.01","Útiles menores médico quirurgicos"]
[{"$nulls":3},"Utiles de cocina y comedor"]
[null,"0041",null,"Utiles menores médico quirurgicos y de laboratorio"]
[null,"0041","2.3.9.6.01","Productos eléctricos y afines"]
[null,"0041","2.3.9.8.01","Otros repuestos y accesorios menores"]
[null,"0041","2.3.9.9.01","Productos y Utiles Varios  n.i.p"]
[null,"0039","2.3.9.9.02","Bonos para útiles diversos"]
[null,"0041","2.3.6.4.07","Minerales"]
[null,"0041","2.3.9.5.01 ","Útiles de cocina y comedor"]
[]
[null,"0044",null,"Otros"]
[{"$nulls":3},"TRANSFERENCIAS CORRIENTES"]
[null,"0040","2.4.1.2.02","Ayudas y donaciones ocacionales a hogares y personas"]
[null,"0039","2.4.1.4.01","Becas nacionales"]
[null,"0039","2.4.1.4.02","Becas extranjeras"]
[null,"0040",null,"Transferencia Por Disminucion Deuda Publica y Otras"]
[null,"0042","2.4.1.6.01","Transferencias corrientes a asociaciones sin fines de lucro"]
[{"$nulls":3},"Transferencias corrientes "]
[null,"0040",null,"Anticipos Financieros"]
[null,"0042",null,"Gasto de depreciación"]
[null,"0042",null,"Gasto de amortización"]
[null,"0044",null,"Pérdida por retiro"]
[{"$nulls":3},"Gasto de amortización"]
[{"$nulls":3},"Otros Gastos"]
[{"$nulls":3},"Comisiones y gastos bancarios"]
[{"$nulls":3},"Balance",{"$f":"SUM(E9:E178)","v":0},{"$f":"SUM(F9:F178)","v":0}]
[{"$nulls":9},{"$f":"+E179-F179","v":0}]
[]
[{"$nulls":3}," "]
{"$rows_empty":11}
[{"$nulls":4},{"v":50,"d":"50.00"},50.25]
[{"$nulls":4},{"$f":"+E194*F194","v":{"v":2512.5,"d":"2,512.50"}}]

{"sheet":"Est. Situacion F.","index":1,"n_rows":72,"n_cols":10,"rows_kept":72,"merged":[[1,2,1,7],[2,2,2,7],[3,2,3,7],[4,2,4,7],[64,2,64,7]]}
[{"$nulls":3}," "]
[null,null,"Hospital Regional Ing. Luis L. Bogaert"]
[null,null,"Estado de Situación Financiera"]
[null,null,"Al 31 de agosto de 2025"]
[null,null,"(Valores en RD$)"]
[]
[{"$nulls":5},2025,null,{"$f":"+[1]BC!G11","v":2016}]
["Mapeo",null,"Activos"]
[null,null,"Activos corrientes"]
["0001",null,null,"Efectivo y equivalentes de efectivo (Nota 7)",null,{"$f":"+Efectivo!C36","v":{"v":7634187.399999999,"d":"7,634,187.40"}}]
["0002",null,null,"Inversiones a corto plazo (Nota 8)"]
["0003",null,null,"Porción corriente de documentos por cobrar (Nota 9)"]
["0004",null,null,"Cuenta por cobrar a corto plazo (Notas 8)",null,{"$f":"'Cuenta por Cobrar'!B16","v":{"v":12641825.49,"d":"12,641,825.49"}}]
["0005",null,null,"Inventarios (Nota 9)"]
["0006",null,null,"Pagos anticipados (Nota 12)",null,0]
["0007",null,null,"Otros activos corrientes (Nota 13)"]
[null,null,"Total activos corrientes",null,null,{"$f":"SUM(F9:F16)","v":{"v":20276012.89,"d":"20,276,012.89"}},null,{"$f":"SUM(H9:H16)","v":0}]
[]
[null,null,"Activos no corrientes"]
["0008",null,null,"Cuentas por cobrar a largo plazo (Notas 14)"]
["0009",null,null,"Documentos por cobrar (Nota 15)"]
["0010",null,null,"Inversiones a largo plazo (Nota 16)"]
["0011",null,null,"Otros activos financieros (Notas 17)"]
["0012",null,null,"Mobiliarios y equipos neto (Nota 10)",null,{"$f":"+'Balanza Comprobacion'!E13-'Balanza Comprobacion'!F14","v":0}]
["0013",null,null,"Activos intangibles (Nota 10) "]
["0014",null,null,"Otros activos no financieros (Nota 20) "]
[null,null,"Total activos no corrientes",null,null,{"$f":"SUM(F20:F26)","v":0},null,{"$f":"SUM(H20:H26)","v":0}]
[]
[null,null,"Total activos",null,null,{"$f":"SUM(F27,F17)","v":{"v":20276012.89,"d":"20,276,012.89"}},null,{"$f":"SUM(H27,H17)","v":0}]
[{"$nulls":3}," "]
[null,null,"Pasivos"]
[null,null,"Pasivos corrientes"]
["0015",null,null,"Sobregiro bancario (Nota 21)"]
["0016",null,null,"Cuentas por pagar a corto plazo (Nota 11)",null,{"$f":"'CXP Corto plazo'!B11","v":{"v":2267872.1,"d":"2,267,872.10"}}]
["0017",null,null,"Préstamos a corto plazo (Nota 23)"]
["0018",null,null,"Parte corriente de préstamos a largo plazo (Nota 24)"]
["0019",null,null,"Retenciones y acumulaciones por pagar (Nota 12)",null,{"$f":"'Retenciones y Acum.'!B12","v":{"v":72495.38,"d":"72,495.38"}}]
["0020",null,null,"Provisiones a corto plazo (Nota 26)"]
["0021",null,null,"Beneficios a empleados a corto plazo (Nota 13)",null,{"$f":"'Benef. Empl x p Corto Plazo'!B13","v":{"v":24100,"d":"24,100.00"}}]
["0022",null,null,"Pensiones (Nota 28)"]
["0023",null,null,"Otros pasivos corrientes (Nota 29)"]
[null,null,"Total pasivos corrientes",null,null,{"$f":"SUM(F33:F41)","v":{"v":2364467.48,"d":"2,364,467.48"}},null,{"$f":"SUM(H33:H41)","v":0}]
[]
[null,null,"Pasivos no corrientes"]
["0024",null,null,"Cuentas por pagar a largo plazo (Nota 14)",null,{"$f":"+'CXP Largo Plazo'!B13","v":{"v":1734190.21,"d":"1,734,190.21"}}]
["0025",null,null,"Préstamos a largo plazo (Nota 31)"]
["0026",null,null,"Instrumentos de deuda (Nota 32)"]
["0027",null,null,"Provisiones a largo plazo (Nota 33)"]
["0028",null,null,"Beneficios a empleados a largo plazo (Nota 15)"]
["0029",null,null,"Otros pasivos no corrientes (Nota 35)"]
[null,null,"Total pasivos no corrientes",null,null,{"$f":"+F45+F49","v":{"v":1734190.21,"d":"1,734,190.21"}}]
[null,null,"Total pasivos ",null,null,{"$f":"+F42+F51","v":{"v":4098657.69,"d":"4,098,657.69"}},null,{"$f":"SUM(H42,H51)","v":0}]
[]
[null,null,"Activos Netos/Patrimonio (Nota 16)"]
["0030",null,null,"Capital",null,{"$f":"F29-F52-F57","v":{"v":15076680.170000002,"d":"15,076,680.17"}}]
["0031",null,null,"Reservas"]
["0032",null,null,"Resultados positivos (ahorro) / negativo (desahorro)",null,{"$f":"+'Est. Resultado F.'!F29","v":{"v":1100675.0299999993,"d":"1,100,675.03"}}]
["0033",null,null,"Resultados acumulados "]
["0034",null,null,"Intereses minoritarios"]
[null,null,"Total activos netos/patrimonio",null,null,{"$f":"+F55+F57+F58","v":{"v":16177355.200000001,"d":"16,177,355.20"}}]
[]
[null,null,"Total pasivos y activos netos/patrimonio",null,null,{"$f":"+F52+F60","v":{"v":20276012.89,"d":"20,276,012.89"}},null,{"$f":"+H52+H60","v":0},null,{"$f":"+F29-F62","v":0}]
[]
[]
[]
[]
[]
[{"$nulls":3},"Jean Flores",null,"Lic. Jenniffer Rodríguez"]
[{"$nulls":3},"Administrador",null,"Contador "]
[]
[{"$nulls":4},"Dr. Newton Solano"]
[{"$nulls":4},"Director"]

{"sheet":"Est. Resultado F.","index":2,"n_rows":44,"n_cols":8,"rows_kept":44,"merged":[[1,2,1,7],[2,2,2,7],[3,2,3,7],[4,2,4,7],[36,2,36,7]]}
[]
[null,null,"Hospital Regional Ing. Luis L. Bogaert"]
[null,null,"Estado de Rendimiento Financiero"]
[null,null,"Del ejercicio terminado al 31 de agosto  2025"]
[null,null,"(Valores en RD$)"]
[]
[{"$nulls":5},2025,null,{"$f":"+[1]ESF!H7","v":2016}]
[null,null,"Ingresos (Nota 17)"]
["0035",null,null,"Impuestos "]
["0036",null,null,"Ingresos por transacciones con contraprestación",null,{"$f":"+Ingresos!B26","v":{"v":7388402.98,"d":"7,388,402.98"}}]
["0037",null,null,"Transferencias"]
["0038",null,null,"Recargos, multas y otros ingresos"]
[null,null,"Total ingresos",null,null,{"$f":"SUM(F9:F12)","v":{"v":7388402.98,"d":"7,388,402.98"}},null,{"$f":"SUM(H9:H12)","v":0}]
[{"$nulls":3}," "]
[null,null,"Gastos (Notas 18, 19, 20, 21 y 22)"]
["0039",null,null,"Sueldos, salarios y beneficios a empleados",null,{"$f":"+Gastos!B10","v":0}]
["0040",null,null,"Subvenciones y otros pagos por transferencias",null,0]
["0041",null,null,"Suministros y materiales para consumo",null,{"$f":"+Gastos!B41-F17","v":{"v":6169267.490000001,"d":"6,169,267.49"}}]
["0042",null,null,"Gasto de depreciación y amortización"]
["0043",null,null,"Deterioro del valor de propiedad, planta y equipo"]
["0044",null,null,"Otros gastos"]
["0045",null,null,"Gastos financieros",null,{"$f":"+Gastos!B165","v":{"v":118460.45999999999,"d":"118,460.46"}},null,{"$f":"SUMIF([1]BC!B:B,[1]ERF!A22,[1]BC!G:G)","v":{"$error":"#VALUE!"}}]
[null,null,"Total gastos",null,null,{"$f":"SUM(F16:F22)","v":{"v":6287727.950000001,"d":"6,287,727.95"}},null,{"$f":"SUM(H16:H22)","v":{"$error":"#VALUE!"}}]
[]
["0046",null,null,"Ganancia (pérdida) por diferencia cambiaria",null,0,null,0]
[]
["0047",null,null,"Participación en resultado de asociadas ",null,0,null,0]
[]
[null,null,"Resultados positivos (ahorro) / negativo (desahorro)",null,null,{"$f":"+F13-F23+F25+F27","v":{"v":1100675.0299999993,"d":"1,100,675.03"}},null,{"$f":"+H13-H23+H25+H27","v":{"$error":"#VALUE!"}}]
[]
[null,null,"Atribuible a:"]
["0048",null,null,"Propietarios de la entidad controladora",null,0,null,0]
["0049",null,null,"Intereses minoritarios ",null,0,null,0]
[{"$nulls":5},{"$f":"SUM(F32:F33)","v":0},null,{"$f":"SUM(H32:H33)","v":0}]
[]
[]
[]
[]
[]
[{"$nulls":3},"Jean Flores",null,"Lic. Jenniffer Rodríguez"]
[{"$nulls":3},"Administrador",null,"Contador "]
[]
[{"$nulls":4},"Dr. Newton Solano"]
[{"$nulls":4},"Director"]

{"sheet":"ECAMP","index":3,"n_rows":23,"n_cols":13,"rows_kept":23,"merged":[[1,1,1,12],[2,1,2,12],[3,1,3,12],[4,1,4,12]]}
[]
[null,{"$f":"+[1]ESF!C2","v":"Entidad Modelo"}]
[null,"Estado de Cambio de Activo / Patrimonio"]
[null,"Del ejercicio terminado al 31 de enero de 2024 y 2025"]
[null,"(Valores en RD$)"]
[]
[{"$nulls":4},"Capital Aportado",null,"Cambios en Políticas Contables",null,"Revaluación",null,"Resultados Acumulados",null,"Total Activos Netos / Patrimonio"]
[null,null,"Saldo al 31 de diciembre de 2015",null,0,null,0,null,0,{"$nulls":3},{"$f":"SUM(E8,G8,I8,K8)","v":0}]
[null,null,"Cambio en políticas contables",{"$nulls":3},0,{"$nulls":5},{"$f":"SUM(E9,G9,I9,K9)","v":0}]
[null,null,"Revaluación de Propiedad, planta y equipo",{"$nulls":5},0,{"$nulls":3},{"$f":"SUM(E10,G10,I10,K10)","v":0}]
[null,null,"Ajuste al patrimonio ",{"$nulls":9},0]
[null,null,"Resultado del período",{"$nulls":9},0]
[null,null,"Saldo al 31 de diciembre de 2016",null,{"$f":"SUM(E8:E12)","v":0},null,{"$f":"SUM(G8:G12)","v":0},null,{"$f":"SUM(I8:I12)","v":0},null,{"$f":"SUM(K8:K12)","v":0},null,{"$f":"SUM(M8:M12)","v":0}]
[null,null," "]
[null,null,"Cambio en políticas contables",{"$nulls":3},0,{"$nulls":5},{"$f":"SUM(E15,G15,I15,K15)","v":0}]
[null,null,"Revaluación de Propiedad, planta y equipo",{"$nulls":5},0,{"$nulls":3},{"$f":"SUM(E16,G16,I16,K16)","v":0}]
[null,null,"Efecto del gasto de depreciación de los activos revaluados",{"$nulls":5},0,null,0,null,0]
[null,null,"Ajuste al patrimonio ",{"$nulls":9},0]
[null,null,"Resultado del período",{"$nulls":9},0]
[null,null,"Saldo al 31 de Diciembre de 2017",null,{"$f":"SUM(E19,E13)","v":0},null,{"$f":"SUM(G19,G13)","v":0},null,{"$f":"SUM(I19,I13)","v":0},null,{"$f":"SUM(K13:K19)","v":0},null,{"$f":"SUM(M13:M19)","v":0}]
[]
[]
[null,null,{"$f":"+[1]ESF!C65","v":"Las notas en las páginas 7 a 20 son parte integral de estos Estados Financieros."}]

{"sheet":"EST. Flujo Efc","index":4,"n_rows":68,"n_cols":8,"rows_kept":68,"merged":[[1,2,1,7],[2,2,2,7],[3,2,3,7],[4,2,4,7]]}
[]
[null,null,{"$f":"+[1]ESF!C2","v":"Entidad Modelo"}]
[null,null,"Estado de Flujo de Efectivo"]
[null,null,{"$f":"+[1]ERF!C4","v":"Del ejercicio terminado al 31 de diciembre del 2017 y 2016"}]
[null,null,"(Valores en RD$)"]
[]
[{"$nulls":5},{"$f":"+[1]BC!E11","v":2017},null,{"$f":"+[1]BC!G11","v":2016}]
[null,null,"Flujos de efectivo procedentes de actividades operativas"]
[{"$nulls":3},"Cobros impuestos",null,0,null,0]
[{"$nulls":3},"Contribuciones de la seguridad social",null,0,null,0]
[{"$nulls":3},"Cobros por venta de bienes y servicios y arrendamientos",null,0,null,0]
[{"$nulls":3},"Cobros de subvenciones, transferencias, y otras asignaciones"]
[{"$nulls":3},"Cobros de seguros por primas, reclamos y otros",null,0,null,0]
[{"$nulls":3},"Cobros por contratos mantenidos para negocios o intercambio",null,0,null,0]
[{"$nulls":3},"Cobros de intereses financieros",null,0,null,0]
[{"$nulls":3},"Otros cobros",null,0,null,0]
[]
[{"$nulls":3},"Pagos a otras entidades para financiar sus operaciones (Transferencias)",null,0,null,0]
[{"$nulls":3},"Pagos a los trabajadores o en beneficio de ellos"]
[{"$nulls":3},"Pagos por contribuciones a la seguridad social"]
[{"$nulls":3},"Pagos de pensiones y jubilaciones",null,0,null,0]
[{"$nulls":3},"Pagos a proveedores "]
[{"$nulls":3},"Pagos por contratos mantenidos para negocios o intercambio",null,0]
[{"$nulls":3},"Pagos de intereses ",null,0,null,0]
[{"$nulls":3},"Otros pagos ",{"$nulls":3},0]
[null,null,"Flujos de efectivo netos de las actividades de operación",null,null,{"$f":"SUM(F9:F25)","v":0},null,{"$f":"SUM(H9:H25)","v":0}]
[{"$nulls":3}," "]
[null,null,"Flujos de efectivo de las actividades de inversión"]
[{"$nulls":3},"Cobros por venta de propiedad, planta y equipo ",null,0,null,0]
[{"$nulls":3},"Cobros por venta de intangibles y otros activos de largo plazo",null,0,null,0]
[{"$nulls":3},"Cobros por títulos patrimoniales o de deuda y participación en asociaciones",null,0,null,0]
[{"$nulls":3},"Cobros por reembolsos de préstamos o anticipos hechos a terceros",null,0,null,0]
[{"$nulls":3},"Cobros por conceptos de contratos a futuro, a plazo, opciones o permuta",null,0,null,0]
[{"$nulls":3},"Otros cobros",null,0,null,0]
[]
[{"$nulls":3},"Pagos por adquisición de propiedad, planta y equipo "]
[{"$nulls":3},"Pagos por adquisición de intangibles y otros activos de largo plazo"]
[{"$nulls":3},"Pagos por adquisición de títulos patrimoniales o de deuda y participación en asociaciones",null,0,null,0]
[{"$nulls":3},"Pagos por otorgamiento de préstamos o anticipos hechos a terceros",null,0,null,0]
[{"$nulls":3},"Pagos por conceptos de contratos a futuro, a plazo, opciones o permuta",null,0,null,0]
[{"$nulls":3},"Pagos por costos de construcciones y desarrollos en proceso",null,0,null,0]
[{"$nulls":3},"Otros pagos ",null,0,null,0]
[null,null,"Flujos de efectivo netos por las actividades de inversión ",null,null,{"$f":"SUM(F29:F42)","v":0},null,{"$f":"SUM(H29:H42)","v":0}]
[]
[null,null,"Flujos de efectivo de las actividades de financiación"]
[{"$nulls":3},"Cobro por emisión de títulos de deudas, bonos",null,0,null,0]
[{"$nulls":3},"Cobro por préstamos, pagarés, hipotecas",null,0,null,0]
[{"$nulls":3},"Cobro por aporte de accionista",null,0,null,0]
[{"$nulls":3},"Cobro de los arrendatarios por contratos de arrendamientos financieros",null,0,null,0]
[{"$nulls":3},"Otros cobros",null,0,null,0]
[]
[{"$nulls":3},"Pago reembolso en efectivo de los montos recibidos en emisión de títulos de deudas, bonos",null,0,null,0]
[{"$nulls":3},"Pago reembolso en efectivo de los montos recibidos en préstamos, pagarés, hipotecas",null,0,null,0]
[{"$nulls":3},"Pago reembolso de efectivo recibió por aporte de accionista",null,0,null,0]
[{"$nulls":3},"Pago por distribución/dividendos al gobierno ",null,0,null,0]
[{"$nulls":3},"Pago de los arrendatarios por contratos de arrendamientos financieros",null,0,null,0]
[{"$nulls":3},"Otros pagos ",null,0,null,0]
[null,null,"Flujos de efectivo netos por las actividades de financiación",null,null,{"$f":"SUM(F46:F57)","v":0},null,{"$f":"SUM(H46:H57)","v":0}]
[]
[null,null,"Incremento/(Disminución) neta en efectivo y equivalentes al efectivo ",null,null,{"$f":"+F26+F43","v":0},null,{"$f":"SUM(H26,H43,H58)","v":0}]
[null,null,"Efectivo y equivalentes al efectivo al principio del período "]
[null,null,"Efectivo y equivalentes al efectivo al final del período ",null,null,{"$f":"SUM(F60:F61)","v":0},null,{"$f":"SUM(H60:H61)","v":0}]
[]
[]
[null,null,{"$f":"+[1]ESF!C65","v":"Las notas en las páginas 7 a 20 son parte integral de estos Estados Financieros."}]
[]
[]
[{"$nulls":3},"Diferencia para control debe ser cero (0)",null,{"$f":"+F62-[1]BC!J14","v":{"v":-23074685.759999998,"d":"(23,074,686)"}},null,{"$f":"+H62-[1]BC!M14","v":{"v":-192226,"d":"(192,226)"}}]

{"sheet":"Efectivo","index":5,"n_rows":36,"n_cols":3,"rows_kept":36,"merged":[[0,1,0,2],[1,1,1,2],[2,1,2,2],[3,1,3,2],[6,0,8,0],[6,1,8,1],[6,2,8,2]]}
[null,"Hospital Regional Ing. Luis L. Bogaert"]
[null,"Nota # 7: Efectivo Caja y Bancos "]
[null,"Del ejercicio terminado al 31 de agosto  del 2025"]
[null,"(Valores en RD$)"]
[]
[]
["# Cta.","Nombre de cuenta"]
[]
[]
[null,"Caja Chica",0]
[300105134,"Operaciones Ex PSS"]
[null," Fondo Salud Ex-PSS "]
["160-112014"," Servicio Nacional de Salud (Fondos Senasa)",0]
["314-0000776"," Fondo Operativo ",{"v":7274.89,"d":"7,274.89"}]
["240-020561-7","Cuenta Nueva Ranchito "]
["314-00145-4","Fondos Especiales CDC "]
["314-0000920-0","Cuenta VIH "]
["314-000181-0","Cuenta Tuberculosis "]
[null,"Venta de Servicios",{"v":7626912.51,"d":"7,626,912.51"}]
[null,"Cuenta Proyecto FGRSS"]
[null,"Anticipo Financieros"]
[null,"Cta. Nomina",0]
[null,"Total balance cuentas de bancarias del Reservas",{"$f":"SUM(C13:C19)","v":{"v":7634187.399999999,"d":"7,634,187.40"}}]
[]
[]
["# Cta.","Tesoreria Nacional","Monto"]
[9995028000,"Fondo de la Direccion Central Servicio Nacional de Salud"]
[9995028001,"Sud- Cuenta Cuota de Pago Direccion Central Servicio Nacional de Salud",0]
[2110003000,"Cuenta Direccion Cental y/o Regional SNS",0]
[9998014000,"Recaudacion Establecimiento de Salud PSS"]
[null,"Cuenta Colectora Recursos Directos PSS"]
[100198000,"Sud- Cuenta Disponibilidad Direccion Central Servicio Nacional de Salud"]
[100198001,"Sub-Cuota de Pago Direccion Central Servicio Nacional de Salud"]
[null,"Total balance cuentas de bancarias tesoreria nacional",{"$f":"SUM(C27:C33)","v":0}]
[]
[null,"Total efectivo y equivalentes de efectivo",{"$f":"+C23+C34","v":{"v":7634187.399999999,"d":"7,634,187.40"}}]

{"sheet":"Cuenta por Cobrar","index":6,"n_rows":16,"n_cols":2,"rows_kept":16,"merged":[[0,0,0,1],[1,0,1,1],[2,0,2,1],[3,0,3,1],[7,0,9,0],[7,1,9,1]]}
["Hospital Regional Ing. Luis L. Bogaert"]
["Notas # 8: Cuenta Por Cobrar"]
["Del ejercicio terminado al 31 de agosto del 2025"]
["(Valores en RD$)"]
[]
[]
[]
["Detalle","Monto"]
[]
[]
["Cuentas Por Cobrar  Colaboradores"]
["Otras  Cuentas Por Cobrar (Retencion IR-3)"]
["Cuentas por Cobrar Proyecto FGBRSS"]
["Cuentas por Cobrar Ventas de Servicios ",{"v":12641825.49,"d":"12,641,825.49"}]
["Anticipos financieros"]
["Total Cuentas Por Cobrar",{"$f":"+B11+B12+B13+B14+B15","v":{"v":12641825.49,"d":"12,641,825.49"}}]

{"sheet":"Inventario","index":7,"n_rows":13,"n_cols":2,"rows_kept":13,"merged":[[0,0,0,1],[1,0,1,1],[2,0,2,1],[3,0,3,1],[6,0,8,0],[6,1,8,1]]}
["Hospital Regional Ing. Luis L. Bogaert"]
["Nota # 9: Inventario"]
["Del ejercicio terminado al 31 de julio del año 2025"]
["(Valores en RD$)"]
[]
[]
["Descripción","Monto"]
[]
[]
["Inventario de Útiles  y Suministro  de Oficina"]
["Inventario Medicamentos"]
["Inventario de  Material Med. Quirurjicos. "]
["Total Inventario",{"$f":"SUM(B10:B12)","v":0}]

{"sheet":"Mobiliario Eq. Ofc.","index":8,"n_rows":35,"n_cols":2,"rows_kept":35,"merged":[[0,0,0,1],[1,0,1,1],[2,0,2,1],[3,0,3,1],[5,5,5,10],[7,0,8,0],[7,1,8,1],[25,0,26,0]]}
["Hospital Regional Ing. Luis L. Bogaert"]
["Nota #10: Mobiliarios y Equipos "]
["Del ejercicio terminado al 3 de julio del año 2025"]
["(Valores en RD$)"]
[]
[]
[]
["Mobiliarios y Equipos de Oficinas","Monto"]
[]
["Costos:"]
["Saldos al inicio"]
["Adiciones"]
["Retiros",0]
["Saldo al final",{"$f":"+B10+B11+B12-B13","v":0}]
[]
[]
["Equipos de Transporte y Otros","SNS"]
["Costos:"]
["Saldos al inicio"]
["Adiciones"]
["Retiros",0]
["Saldo al final",{"$f":"+B18+B19+B20-B21","v":0}]
[]
[]
[]
["Depreciación acumulada:","Cede Central"]
[null,"SNS"]
["Saldos al inicio Mob. Y Eq."]
["Saldos al inicio de Equipo de Trans."]
["Cargo del período Mob. Y Eq."]
["Cargo del período Equipo de Trans."]
["Retiros Mob. Y Equipo",0]
["Retiros Equipo de Trans."]
["Saldo al final",{"$f":"SUM(B28:B33)","v":0}]
["Mobiliarios y equipos, neto",{"$f":"+B14+B22-B34","v":0}]

{"sheet":"CXP Corto plazo","index":9,"n_rows":12,"n_cols":2,"rows_kept":12,"merged":[[0,0,0,1],[1,0,1,1],[2,0,2,1],[3,0,3,1],[7,0,9,0],[7,1,9,1]]}
["Hospital Regional Ing. Luis L. Bogaert"]
["Nota # 11: Cuentas por Pagar a Corto Plazo"]
["Del ejercicio terminado al 31 de agosto del 2025"]
["(Valores en RD$)"]
[]
[]
[]
["Detalle","Monto"]
[]
[]
["Cuentas por Pagar Suplidores",{"v":2267872.1,"d":"2,267,872.10"}]
["Total Cuentas Por Pagar a Corto Plazo",{"$f":"+B11","v":{"v":2267872.1,"d":"2,267,872.10"}}]

{"sheet":"Retenciones y Acum.","index":10,"n_rows":19,"n_cols":2,"rows_kept":19,"merged":[[0,0,0,1],[1,0,1,1],[2,0,2,1],[3,0,3,1],[7,0,9,0],[7,1,9,1]]}
["Hospital Regional Ing. Luis L. Bogaert"]
["Nota #12:  Retenciones y Acumulaciones"]
["Del ejercicio terminado al 31 de agosto 2025"]
["(Valores en RD$)"]
[]
[]
[]
["Detalle","Monto"]
[]
[]
["Retenciones ISR Empleados"]
["Retencion ISR 5%",{"v":72495.38,"d":"72,495.38"}]
["Retenciones ISR 10%",0]
["Retencion ITBIS "]
["Infotep"]
["Retencion Seguridad Social"]
["Retencion de Supervision de Obras"]
["Retencion ley 6-86 Pensiones"]
["Total Retenciones y Acumulaciones ",{"$f":"SUM(B11:B18)","v":{"v":72495.38,"d":"72,495.38"}}]

{"sheet":"Benef. Empl x p Corto Plazo","index":11,"n_rows":13,"n_cols":2,"rows_kept":13,"merged":[[0,0,0,1],[1,0,1,1],[2,0,2,1],[3,0,3,1],[6,0,8,0],[6,1,8,1]]}
["Hospital Regional Ing. Luis L. Bogaert"]
["Nota # 13: Beneficios a Empleados por Pagar a Corto Plazo"]
["Del ejercicio terminado Al 31 de agosto del 2025"]
["(Valores en RD$)"]
[]
[]
["Detalle","Monto"]
[]
[]
["Sueldos Por Pagar"]
["Viaticos Empleados ",{"v":24100,"d":"24,100.00"}]
["Prestaciones Laborales Por Pagar Empleados "]
["Total Beneficios a Empleados por Pagar a Corto Plazo",{"$f":"+B10+B11+B12","v":{"v":24100,"d":"24,100.00"}}]

{"sheet":"CXP Largo Plazo","index":12,"n_rows":13,"n_cols":2,"rows_kept":13,"merged":[[0,0,0,1],[1,0,1,1],[2,0,2,1],[3,0,3,1],[7,0,9,0],[7,1,9,1]]}
["Hospital Regional Ing. Luis L. Bogaert"]
["Nota #14: Cuentas por Pagar Largo Plazo"]
["Del ejercicio terminado Al 31 de agosto del 2025"]
["(Valores en RD$)"]
[]
[]
[]
["Detalle","Monto"]
[]
[]
["Cuentas por Pagar Hospitalaria  Largo Plazo  ",{"v":1734190.21,"d":"1,734,190.21"}]
[]
["Total Cuentas Por Pagar a Largo Plazo",{"$f":"SUM(B11:B12)","v":{"v":1734190.21,"d":"1,734,190.21"}}]

{"sheet":"Benef. Empl x pagar Larg. Plaz","index":13,"n_rows":13,"n_cols":2,"rows_kept":13,"merged":[[0,0,0,1],[1,0,1,1],[2,0,2,1],[3,0,3,1],[6,0,8,0],[6,1,8,1]]}
["Hospital Regional Ing. Luis L. Bogaert"]
["Nota #15: Beneficios a Empleados por Pagar Largo Plazo"]
["Del ejercicio terminado Al 31 de agosto del 2025"]
["(Valores en RD$)"]
[]
[]
["Detalle","Monto"]
[]
[]
["Sueldos Por Pagar"]
["Viaticos Empleados ",0]
["Prestaciones Laborales Por Pagar Empleados "]
["Total Cuentas Por Pagar  Largo Plazo",{"$f":"+B10+B11+B12","v":0}]

{"sheet":"Patrimonio","index":14,"n_rows":14,"n_cols":2,"rows_kept":14,"merged":[[0,0,0,1],[1,0,1,1],[2,0,2,1],[3,0,3,1],[7,0,9,0],[7,1,9,1]]}
["Hospital Regional Ing. Luis L. Bogaert"]
["Nota #16: Patrimonio "]
["Del ejercicio terminado al 31 de agosto 2025"]
["(Valores en RD$)"]
[]
[]
[]
["Detalle","Monto"]
[]
[]
["Capital                                                                      ",{"$f":"+'Est. Situacion F.'!F55","v":{"v":15076680.170000002,"d":"15,076,680.17"}}]
["Resultados positivos (ahorro)/negativo (desahorro)",{"$f":"+'Est. Situacion F.'!F57","v":{"v":1100675.0299999993,"d":"1,100,675.03"}}]
["Resultado acumulado                                                       "]
["Total Patrimonio Neto"]

{"sheet":"Ingresos","index":15,"n_rows":26,"n_cols":2,"rows_kept":26,"merged":[[0,0,0,1],[1,0,1,1],[2,0,2,1],[3,0,3,1],[6,0,7,0],[6,1,7,1]]}
["Hospital Regional Ing. Luis L. Bogaert"]
["Nota 17: Ingresos"]
["Del ejercicio terminado al 31 de agosto 2025"]
["(Valores en RD$)"]
[]
[]
["Ingresos con Contraprestacion de Servicios","Monto"]
[]
["Venta de Servicios",{"$f":"4651133.9+195000+42300","v":{"v":4888433.9,"d":"4,888,433.90"}}]
["Sub-Total",{"$f":"B9","v":{"v":4888433.9,"d":"4,888,433.90"}}]
[]
["Ingresos sin  Contraprestacion de Servicios","Monto"]
["Otros Ingresos",0]
["Operaciones Ex PSS"]
[" Fondo Salud Ex-PSS "]
[" Fondo Operativo ",{"v":2499969.08,"d":"2,499,969.08 "}]
["Cuenta Nueva Ranchito "]
["Fondos Especiales CDC "]
["Cuenta VIH "]
["Cuenta Tuberculosis "]
["Cuenta Proyecto FGRSS"]
["Anticipo Financieros"]
["Cuenta Direccion Central SNS"]
["Sud- Cuenta Disponibilidad Direccion Central Servicio Nacional de Salud"]
["Sub-Total",{"$f":"SUM(B13:B24)","v":{"v":2499969.08,"d":"2,499,969.08"}}]
["Total",{"$f":"B10+B25","v":{"v":7388402.98,"d":"7,388,402.98"}}]

{"sheet":"Gastos","index":16,"n_rows":190,"n_cols":11,"rows_kept":190,"merged":[[1,0,1,1],[2,0,2,1],[3,0,3,1],[4,0,4,1],[6,1,8,1]]}
[]
["Hospital Regional Ing. Luis L. Bogaert"]
["Gastos Generales"]
["Del Ejercicio Terminado "]
["(Valores en RD$)"]
[]
[null,"Nombre del hospital","Sto. Dgo","San Cristobal","Santiago","San Francisco ","Barahona","San Pedro","San Juan","Mao","Vega"]
[" ",null,"Metropolitano","Valdesia","Norcentral","Nordeste","Enriquillo","Este","Valle","Cibao Occidental","Cibao Central"]
["Descripcion",null,0,"I","II","III","IV","V","VI","VII","VIII"]
["Sueldos, Salarios y Beneficios a Empleados",{"$f":"+B11+B37","v":0}]
["Servicio Personales",{"$f":"+B12+B25","v":0},null,{"v":35118105.73,"d":"35,118,106"},{"v":45139140,"d":"45,139,140"},{"v":31819976.53,"d":"31,819,977"},{"v":20892619.169999998,"d":"20,892,619"},{"v":110757991,"d":"110,757,991"},null,{"v":11861307,"d":"11,861,307"},{"v":24536480,"d":"24,536,480"}]
["Remuneraciones",{"$f":"SUM(B13:B24)","v":0}]
["Sueldos fijos",0]
["Sueldos al personal contratado y/o igualado",0,{"v":29430855,"d":"29,430,855"},{"$nulls":5},{"v":329500,"d":"329,500"}]
["Sueldos al personal fijo en trámite de pensiones",0]
["Sueldo  de personal nominal",0,{"$nulls":6},{"v":13203892,"d":"13,203,892"}]
["Sueldo Por Suplencias",0,{"$nulls":6},{"v":112552,"d":"112,552"}]
["Sueldos al personal por servicios especiales",0]
["Sueldo anual no. 13",0]
["Prestaciones económicas",0]
["Sueldo anual no. 13",0,{"v":49738,"d":"49,738"}]
["Proporción de vacaciones no disfrutadas",0,{"v":34610,"d":"34,610"}]
["Incentivos y escalafón",0]
["Prestación laboral por desvinculación",0,{"v":199023,"d":"199,023"}]
["Sobresueldo",{"$f":"SUM(B26:B34)","v":0},{"$nulls":6},{"v":2818598,"d":"2,818,598"}]
["Compensación por horas extraordinarias",0]
["Compensación por servicio de seguridad"]
["Compensaciones por resultado",null,{"v":9319591,"d":"9,319,591"}]
["Compensación por distancia"]
["Compensaciones especiales",0]
["Primas por antigüedad"]
["Pago de horas extraordinarias, Horas extraordinarias fin de año (Reglamento 523-09)",0]
["Insentivo por Rendimiento Individual y Bono por desempeño",0]
["Dietas en el país",0]
["GRATIFICACIONES Y BONIFICACIONES",{"$f":"SUM(B36)","v":0}]
["Gratificaciones por aniversario de institución"]
["Contribuciones de la Seguridad Social y Riesgo Laboral",{"$f":"SUM(B38:B40)","v":0}]
["Contribuciones al seguro de salud",null,{"v":1814033,"d":"1,814,033"}]
["Contribuciones al seguro de pensiones ",null,{"v":1816538,"d":"1,816,538"}]
["Contribuciones al seguro de riesgo laboral",null,{"v":308912,"d":"308,912"}]
["Suministros y materiales para consumo",{"$f":"+B42+B97","v":{"v":6169267.490000001,"d":"6,169,267.49"}},null,{"v":19429803.13,"d":"19,429,803"},null,null,{"v":12720319.59,"d":"12,720,320"}]
["Servicios No Personales",{"$f":"+B43+B50+B56+B61+B67+B70+B81","v":{"v":645898.8200000001,"d":"645,898.82"}},null,{"v":2027243.26,"d":"2,027,243"},{"v":14495469,"d":"14,495,469"},{"v":5545997.99,"d":"5,545,998"},{"v":3935002.5,"d":"3,935,003"},{"v":12698046,"d":"12,698,046"},null,{"v":6326375,"d":"6,326,375"},{"v":1657006.02,"d":"1,657,006"}]
["Sevicios Basicos",{"$f":"SUM(B44:B49)","v":{"v":147145.90000000002,"d":"147,145.90"}},{"$nulls":6},{"v":1160229,"d":"1,160,229"}]
["Servicios telefónico de larga distancia",0]
["Teléfono local",{"v":114571.08,"d":"114,571.08"},{"v":2467472,"d":"2,467,472"}]
["Telefax y correo",{"v":4079.82,"d":"4,079.82"}]
["Servicio de internet y televisión por cable",{"v":9995,"d":"9,995.00"},{"v":1140547,"d":"1,140,547"},{"$nulls":5},780]
["Recolección de residuos sólidos",0]
["Agua",{"v":18500,"d":"18,500.00"},{"v":338744,"d":"338,744"},{"$nulls":5},{"v":922.8,"d":"923"}]
["Publicidad, Impresión y Encuadernacion",{"$f":"SUM(B51:B55)","v":{"v":266152.92,"d":"266,152.92"}}]
["Publicidad y propaganda",{"v":51145.92,"d":"51,145.92"}]
["Impresión y encuadernación",{"v":169507,"d":"169,507.00"},{"v":9403892,"d":"9,403,892"},{"$nulls":5},{"v":2222079.58,"d":"2,222,080"}]
["Viaticos",0]
["Viáticos dentro del país",{"v":45500,"d":"45,500.00"},{"v":267100,"d":"267,100"},{"$nulls":5},{"v":489966,"d":"489,966"}]
["Viáticos fuera del país",0]
["Transporte y Almacenajes",{"$f":"SUM(B57:B60)","v":0}]
["Pasajes",0,{"$nulls":6},{"v":7500,"d":"7,500"}]
["Peajes",{"$nulls":7},650]
["Almacenaje",0,{"$nulls":6},{"v":20000,"d":"20,000"}]
["Fletes",0,{"v":76700,"d":"76,700"},{"$nulls":5},{"v":3500,"d":"3,500"}]
["Alquileres y Rentas",{"$f":"SUM(B62:B66)","v":{"v":28500,"d":"28,500.00"}}]
["Alquiler de equipo de oficina y muebles",0,{"$nulls":6},{"v":36356,"d":"36,356"}]
["Alquileres de equipos de transporte, tracción y elevación",{"v":28500,"d":"28,500.00"}]
["Alquilleres y rentas de edificios y locales",0,{"$nulls":6},{"v":1291043,"d":"1,291,043"}]
["Alquiler de equipo para computación"]
["Otros alquileres",0,{"v":7097772,"d":"7,097,772"},{"$nulls":5},{"v":8100,"d":"8,100"}]
["Seguros",{"$f":"SUM(B68:B69)","v":0}]
["Seguro de bienes muebles"]
["Seguros de personas",0,{"$nulls":6},{"v":802200,"d":"802,200"}]
["Conserv., Reps. Menores e Instalaciones Temp.",{"$f":"SUM(B71:B79)","v":{"v":7000,"d":"7,000.00"}}]
["Reparaciones de maquinarias y equipos",0,{"$nulls":6},{"v":488352,"d":"488,352"}]
["Servicios de construccion y reparacion menores",{"$nulls":7},{"v":81929.74,"d":"81,930"}]
["Obras menores en edificaciones",null,{"v":1294196,"d":"1,294,196"},{"$nulls":5},{"v":821403,"d":"821,403"}]
["Servicios especiales de mantenimiento y reparación",0]
["Servicios de pintura y derivados con fin de higiene y embellecimiento",0,{"v":561297,"d":"561,297"}]
["Reparaciones de obras menores",0]
["Mant. y rep. De equipo de oficina y muebles",0,{"v":1211846,"d":"1,211,846"}]
["Mantenimiento y reparación de equipos sanitarios y de laboratorio",{"v":7000,"d":"7,000.00"},{"v":338601,"d":"338,601"}]
["Mantenimiento y reparación de equipos de transporte, tracción y elevación",0,{"v":1329548,"d":"1,329,548"}]
["Pinturas, Lacas, Barnices, Diluyentes y Absorbentes para Pinturas"]
["Otros Servicios No Personales",{"$f":"SUM(B82:B96)","v":{"v":197100,"d":"197,100.00"}},{"$nulls":6},{"v":1214524,"d":"1,214,524"}]
["Servicios sanitarios médicos y veterinarios ",0]
["Fumigación",0]
["Insecticidas, Fumigantes y Otros",0]
["Limpieza e higiene",0,{"$nulls":6},{"v":12314,"d":"12,314"}]
["Eventos generales",0]
["Organización de eventos y festividades",{"$nulls":7},{"v":1416,"d":"1,416"}]
["Servicios jurídicos",0]
["Gastos judiciales",0]
["Servicios de capacitación",0,{"v":424960,"d":"424,960"}]
["Otros servicios técnicos profesionales",{"v":187100,"d":"187,100.00"},{"$nulls":6},{"v":97290.82,"d":"97,291"}]
["Impuestos ",0,{"$nulls":6},175]
["Recolección de residuos sólidos",0]
["Servicios de informática y sistemas computarizados",{"v":10000,"d":"10,000.00"}]
["Servicios Varios",0,{"v":174463,"d":"174,463"}]
["Otros gastos operativos de Instituciones empresariales",0,{"$nulls":6},{"v":15000,"d":"15,000"}]
["Materiales y Suministro",{"$f":"+B98+B102+B106+B117+B129+B140+B153+B171","v":{"v":5523368.670000001,"d":"5,523,368.67"}},null,null,{"v":20818281,"d":"20,818,281"},{"v":9645177.74,"d":"9,645,178"},null,{"v":16082211,"d":"16,082,211"},null,{"v":6682896,"d":"6,682,896"},{"v":17465071,"d":"17,465,071"}]
["Alimentos y Productos Agroforestales",{"$f":"SUM(B99:B101)","v":{"v":555720.3400000001,"d":"555,720.34"}}]
["Alimentos y bebidas para personas",{"$f":"77948.5+477771.84","v":{"v":555720.3400000001,"d":"555,720.34"}},{"v":1945814,"d":"1,945,814"},{"$nulls":5},{"v":460280.26,"d":"460,280"}]
["Productos forestales",0,{"v":17110,"d":"17,110"}]
["Madera y corcho y sus manufacturas ",0,{"$nulls":6},{"v":104122,"d":"104,122"}]
["Textiles y Vestuarios",{"$f":"SUM(B103:B105)","v":0}]
["Hilados y telas",0,{"$nulls":6},{"v":3761.55,"d":"3,762"}]
["Acabados textiles",0,{"$nulls":6},{"v":45058.18,"d":"45,058"}]
["Prendas de vestir",0,{"v":11547,"d":"11,547"}]
["Productos de Papel, Carton e Impreso",{"$f":"SUM(B107:B116)","v":{"v":1067357.4,"d":"1,067,357.40"}}]
["Papel de escritorio",0,{"v":106029,"d":"106,029"}]
["Productos de papel y cartón",{"v":45750,"d":"45,750.00"},{"v":248950,"d":"248,950"},{"$nulls":5},{"v":8066.48,"d":"8,066"}]
["Productos de artes gráficas",0,{"v":384503,"d":"384,503"}]
["Productos medicinales para uso humano",{"$f":"1021607.4","v":{"v":1021607.4,"d":"1,021,607.40"}},{"v":5780385,"d":"5,780,385"},{"$nulls":5},{"v":2419313.18,"d":"2,419,313"}]
["Productos de Cuero, Caucho y Plasticos",0,{"$nulls":6},{"v":46420,"d":"46,420"}]
["Artículos de cuero",0]
["Libros, revistas y periódicos",0]
["Llantas y neumáticos",0,{"v":28305,"d":"28,305"},{"$nulls":5},{"v":13636.3,"d":"13,636"}]
["Artículos de caucho",0,{"$nulls":6},{"v":1225,"d":"1,225"}]
["Artículos y Materiales Plástico",0,{"$nulls":6},{"v":49237.31,"d":"49,237"}]
["Productos de Minerales, Metalicos y No Metalicos",{"$f":"SUM(B118:B128)","v":{"v":32000,"d":"32,000.00"}},{"$nulls":6},{"v":633805.24,"d":"633,805"}]
["Metales y piedras preciosas",0]
["Productos de cemento",0]
["Productos de yeso",0]
["Productos de vidrio"]
["Productos ferrosos",0]
["Productos de loza",0]
["Productos metálicos y sus derivados",0,{"$nulls":6},{"v":286878,"d":"286,878"}]
["Herramientas menores",0,{"v":356152,"d":"356,152"}]
["Productos de hojalata",0]
["Accesorios de metal",{"$f":"32000","v":{"v":32000,"d":"32,000.00"}}]
["Piedra, arcilla y arena",0]
["Combustibles, Lubricantes, Productos Quimicos y Conexos",{"$f":"SUM(B130:B139)","v":{"v":2844243.46,"d":"2,844,243.46"}}]
["Gas GLP",{"v":58082,"d":"58,082.00"}]
["Gasolina",{"v":865488.2,"d":"865,488.20"},{"v":4639996,"d":"4,639,996"}]
["Gasoil",{"v":49815,"d":"49,815.00"}]
["Aceites y grasas",{"$nulls":7},{"v":5925,"d":"5,925"}]
["Lubricantes",0,{"$nulls":6},{"v":3268555.8899999997,"d":"3,268,556"}]
["Productos fotoquímicos",0]
["Productos químicos de laboratorio y de uso personal",{"v":1855333.34,"d":"1,855,333.34"}]
["Insecticidas, fumigantes y otros",0]
["Pinturas, lacas, barnices, diluyentes y absorbentes para pinturas",{"$f":"15524.92","v":{"v":15524.92,"d":"15,524.92"}}]
["Productos químicos y conexos",0,{"$nulls":6},{"v":1023150.54,"d":"1,023,151"}]
["Productos y Utiles Varios  ",{"$f":"SUM(B141:B152)","v":{"v":774885.69,"d":"774,885.69"}}]
["Material para limpieza",{"v":36414.76,"d":"36,414.76"},{"v":1435525,"d":"1,435,525"},{"$nulls":5},{"v":1079807.62,"d":"1,079,808"}]
["Útiles de escritorio, oficina e informática ",{"v":12165.08,"d":"12,165.08"},{"v":3796372,"d":"3,796,372"}]
["Utiles menores médico quirurgicos y de laboratorio",{"v":678200.27,"d":"678,200.27"},{"v":128217,"d":"128,217"},{"$nulls":5},{"v":2280433,"d":"2,280,433"}]
["Útiles destinados a actividades deportivas y recreativas",0]
["Productos eléctricos y afines",0,{"v":547893,"d":"547,893"},{"$nulls":5},{"v":200958,"d":"200,958"}]
["Productos y utiles veterinarios ",0]
["Productos y Utiles Varios  ",0,{"v":977370,"d":"977,370"},{"$nulls":5},{"v":374272.6,"d":"374,273"}]
["Otros repuestos y accesorios menores",0,{"$nulls":6},{"v":25889.2,"d":"25,889"}]
["Bonos para útiles diversos",0]
["Minerales",0]
["Útiles de cocina y comedor",{"v":48105.58,"d":"48,105.58"},{"v":294453,"d":"294,453"}]
["Otros",0]
["Transferencias Corrientes",{"$f":"SUM(B154:B160)","v":0}]
["Ayudas y donaciones ocacionales a hogares y personas",0]
["Becas nacionales",0]
["Becas extranjeras",0]
["Transferencia Por Disminucion Deuda Publica y Otras",0]
["Transferencias corrientes a asociaciones sin fines de lucro",0]
["Transferencias corrientes a Instituciones Públicas de la Seg. Soc. para Servicios Personales",0]
["Anticipos Financieros",0]
["Gasto de depreciación y amortización",{"$f":"SUM(B162:B164)","v":0}]
["Gasto de depreciación",0]
["Gasto de amortización",0]
["Pérdida por retiro",0]
["Gasto Financiero",{"$f":"SUM(B166:B170)","v":{"v":118460.45999999999,"d":"118,460.46"}}]
["Comisiones y gastos bancarios",{"$f":"9900.46","v":{"v":9900.46,"d":"9,900.46"}},{"v":174731,"d":"174,731"},{"$nulls":5},{"v":1550,"d":"1,550"}]
["Gasto de amortización"]
["Pérdida por retiro"]
["Bienes Muebles, Inmuebles e Intangibles",0,{"$nulls":3},{"v":3395210.2199999997,"d":"3,395,210"}]
["Obras",{"v":108560,"d":"108,560.00"},{"$nulls":3},{"v":713803.91,"d":"713,804"}]
["Otros Gastos Institucionales",{"$f":"SUM(B172:B183)","v":{"v":249161.78,"d":"249,161.78"}},null,{"v":15766511.87,"d":"15,766,512"},{"v":4124655,"d":"4,124,655"},null,null,{"v":4939911,"d":"4,939,911"}]
["Mueble y Equipos de Oficina",0,{"v":7149694,"d":"7,149,694"}]
["Equipos de Transportes y Reparaciones",0]
["Equipos de Tecnologia de la información y Comunicación",0,{"v":2505967,"d":"2,505,967"}]
["Electrodomésticos",0,{"v":155760,"d":"155,760"}]
["Equipos Medicos y de Laboratorio",{"v":249161.78,"d":"249,161.78"},{"v":6950570,"d":"6,950,570"}]
["Instrumentos Medicos",0,{"v":361006,"d":"361,006"}]
["Maquinaria y Equipos Industriales",0]
["Sistema y Equipos de Climatización",0,{"v":441043,"d":"441,043"}]
["Equipos y Aparatos Audiovisuales",0]
["Equipos de Cominicación, Telecomuniciones y Señalamiento",0]
["Equipos de Seguridad",0]
["Equipos de Generacion Electica",0,{"v":1347864,"d":"1,347,864"}]
["Totales",{"$f":"+B10+B41+B161+B165","v":{"v":6287727.950000001,"d":"6,287,727.95"}},{"$f":"SUM(C11:C183)","v":{"v":108885694,"d":"108,885,694"}},{"$f":"SUM(D11:D183)","v":{"v":72341663.99,"d":"72,341,664"}},{"$f":"SUM(E11:E183)","v":{"v":84577545,"d":"84,577,545"}},{"$f":"SUM(F10:F183)","v":{"v":51120166.39,"d":"51,120,166"}},{"$f":"SUM(G11:G183)","v":{"v":37547941.26,"d":"37,547,941"}},{"$f":"SUM(H11:H183)","v":{"v":144478159,"d":"144,478,159"}},{"$f":"SUM(I10:I183)","v":{"v":37572618.29000001,"d":"37,572,618"}},{"$f":"SUM(J11:J183)","v":{"v":24870578,"d":"24,870,578"}},{"$f":"SUM(K10:K183)","v":{"v":43658557.019999996,"d":"43,658,557"}}]
[]
[]
[]
[null,{"$f":"SUM(B186:B187)","v":0}]
[]
[null,"                                                                                                                                                                                                                                                                                                                                                                                                                                                                                                                                                                                                                                                                                                                                                            "]